Department Family,Entity,Date of Payment,Expense Type,Expense Area,Supplier,Voluntary & Community Sector,SME Class,Sole Trader,Transaction number,Purchasing Item Text,Postal Code,Amount in Sterling,Grant?
"Housing, Communities & Local Government",PINS,02/04/2024,Agency Staff,Digital Services,HAYS SPECIALIST RECRUITMENT LTD,,Large,,5106309499,Contingent Labour,NW1 2AF,"4,375.20",
"Housing, Communities & Local Government",PINS,02/04/2024,Agency Staff,Digital Services,HAYS SPECIALIST RECRUITMENT LTD,,Large,,5106309550,Contingent Labour,NW1 2AF,"2,073.66",
"Housing, Communities & Local Government",PINS,02/04/2024,Agency Staff,Communications,HAYS SPECIALIST RECRUITMENT LTD,,Large,,5106309582,Contingent Labour,NW1 2AF,"2,497.32",
"Housing, Communities & Local Government",PINS,02/04/2024,Conferences and Meeting Facilities,Human Resources,CALDER CONFERENCES LIMITED,,Small,,5106309484,OnePINS Venue Hire,LS16 6RF,"38,500.01",
"Housing, Communities & Local Government",PINS,02/04/2024,DEV Exp (AUC) Intngble Software Acq Cost,PINS Capital X085A011,HAYS SPECIALIST RECRUITMENT LTD,,Large,,5106309555,Software Tester ,NW1 2AF,"2,212.86",
"Housing, Communities & Local Government",PINS,02/04/2024,"IT - PC, Network & Hardware",Digital Services,X M A LTD,,Data Not Provided,,5106309490,Hardware & Hardware Services,NG11 7EP,"1,798.20",
"Housing, Communities & Local Government",PINS,02/04/2024,IT at cost,PINS Capital X085A011,X M A LTD,,Data Not Provided,,5106309479,Monitors,NG11 7EP,"11,229.75",
"Housing, Communities & Local Government",PINS,02/04/2024,IT Maintenance,Digital Services,X M A LTD,,Data Not Provided,,5106309490,Hardware & Hardware Services,NG11 7EP,"1,498.50",
"Housing, Communities & Local Government",PINS,02/04/2024,PADS Fees & Expenses,Inspectors Costs,REDACTED,,Data Not Provided,,5106309551,PADS Fees and Expenses,WA15 9LH,"7,035.60",
"Housing, Communities & Local Government",PINS,02/04/2024,PADS Fees & Expenses,Inspectors Costs,REDACTED,,Small,,5106309495,PADS Fees and Expenses,RG24 8SA,"3,479.14",
"Housing, Communities & Local Government",PINS,02/04/2024,PADS Fees & Expenses,Inspectors Costs,REDACTED,,Data Not Provided,,5106309553,PADS Fees and Expenses,DE72 3QP,"2,049.70",
"Housing, Communities & Local Government",PINS,02/04/2024,PADS Fees & Expenses,Inspectors Costs,REDACTED,,Data Not Provided,,5106309557,PADS Fees and Expenses,EC4Y 7AR,124.35,
"Housing, Communities & Local Government",PINS,02/04/2024,PADS Fees & Expenses,Inspectors Costs,REDACTED,,Data Not Provided,,5106309557,PADS Fees and Expenses,EC4Y 7AR,"3,192.00",
"Housing, Communities & Local Government",PINS,02/04/2024,Software Licences,Digital Services,PHOENIX SOFTWARE,,Medium,,5106309532,Confluence,YO42 1NS,"11,364.05",
"Housing, Communities & Local Government",PINS,02/04/2024,Software Licences,Digital Services,PHOENIX SOFTWARE,,Medium,,5106309532,Jira,YO42 1NS,"16,264.62",
"Housing, Communities & Local Government",PINS,02/04/2024,Software Licences,Digital Services,PHOENIX SOFTWARE,,Medium,,5106309532,Zephyr Squad,YO42 1NS,"9,213.08",
"Housing, Communities & Local Government",PINS,03/04/2024,Agency Staff,Digital Services,HAYS SPECIALIST RECRUITMENT LTD,,Large,,5106309628,Contingent Labour,NW1 2AF,"3,500.16",
"Housing, Communities & Local Government",PINS,03/04/2024,Agency Staff,Digital Services,HAYS SPECIALIST RECRUITMENT LTD,,Large,,5106309629,Contingent Labour,NW1 2AF,"3,500.16",
"Housing, Communities & Local Government",PINS,03/04/2024,Agency Staff,Communications,HAYS SPECIALIST RECRUITMENT LTD,,Large,,5106309702,Contingent Labour,NW1 2AF,998.93,
"Housing, Communities & Local Government",PINS,03/04/2024,Agency Staff,Communications,HAYS SPECIALIST RECRUITMENT LTD,,Large,,5106309703,Contingent Labour,NW1 2AF,"1,498.39",
"Housing, Communities & Local Government",PINS,03/04/2024,Agency Staff,Resourcing & Process,REED SPECIALIST RECRUITMENT LTD,,Large,,5106309641,Contingent Labour,SW20 0BA,735.80,
"Housing, Communities & Local Government",PINS,03/04/2024,Agency Staff,Finance,REED SPECIALIST RECRUITMENT LTD,,Large,,5106309652,Contingent Labour,SW20 0BA,"1,764.00",
"Housing, Communities & Local Government",PINS,03/04/2024,Agency Staff,Finance,REED SPECIALIST RECRUITMENT LTD,,Large,,5106309658,Contingent Labour,SW20 0BA,662.42,
"Housing, Communities & Local Government",PINS,03/04/2024,DEV Exp (AUC) Intngble Software Acq Cost,PINS Capital X085A011,HAYS SPECIALIST RECRUITMENT LTD,,Large,,5106309633,Test Engineer  ,NW1 2AF,"1,890.29",
"Housing, Communities & Local Government",PINS,03/04/2024,DEV Exp (AUC) Intngble Software Acq Cost,PINS Capital X085A011,HAYS SPECIALIST RECRUITMENT LTD,,Large,,5106309635,Lead Product Manager  ,NW1 2AF,"3,708.34",
"Housing, Communities & Local Government",PINS,03/04/2024,Internal Audit,Finance,H M TREASURY,,Public Bodies,,5106309666,PINS - GIAA Internal Audit 2023-23,NR7 0HS,"18,547.50",
"Housing, Communities & Local Government",PINS,03/04/2024,IT - Service Contracts,Digital Services,tmc3 Limited,,Small,,2100120578,SoW02 - Cyber Security as a Service  ,L18 2DA,"-6,325.00",
"Housing, Communities & Local Government",PINS,03/04/2024,IT - Service Contracts,Digital Services,tmc3 Limited,,Small,,5106309713,SoW02 - Cyber Security as a Service  ,L18 2DA,"6,325.00",
"Housing, Communities & Local Government",PINS,03/04/2024,IT SUPPORT,Change Portfolio Workstreams,KORN FERRY (UK) LTD,,Large,,5106309614,Specialist resources,SW1Y 6QB,"15,229.50",
"Housing, Communities & Local Government",PINS,03/04/2024,Legal Fees,Innovation & Improvement,GOVERNMENT LEGAL DEPT,,Public Bodies,,5106309616,Legal Fees,WC2B 4TS,"153,078.95",
"Housing, Communities & Local Government",PINS,03/04/2024,PADS Fees & Expenses,Inspectors Costs,REDACTED,,Micro,,5106309619,PADS Fees and Expenses,WR13 6QP,"2,125.00",
"Housing, Communities & Local Government",PINS,03/04/2024,PADS Fees & Expenses,Inspectors Costs,REDACTED,,Micro,,5106309636,PADS Fees and Expenses,BA4 9DN,"1,893.12",
"Housing, Communities & Local Government",PINS,03/04/2024,PADS Fees & Expenses,Inspectors Costs,REDACTED,,Micro,,2100120584,PADS Fees and Expenses,RH20 3LY,"-2,770.00",
"Housing, Communities & Local Government",PINS,03/04/2024,PADS Fees & Expenses,Inspectors Costs,REDACTED,,Micro,,5106309610,PADS Fees and Expenses,RH20 3LY,"2,770.00",
"Housing, Communities & Local Government",PINS,03/04/2024,PADS Fees & Expenses,Inspectors Costs,REDACTED,,Small,,5106309637,PADS Fees and Expenses,WS13 7DH,"1,579.14",
"Housing, Communities & Local Government",PINS,03/04/2024,PADS Fees & Expenses,Inspectors Costs,REDACTED,,Micro,,2100120583,PADS Fees and Expenses,B14 6BX,"-3,258.96",
"Housing, Communities & Local Government",PINS,03/04/2024,PADS Fees & Expenses,Inspectors Costs,REDACTED,,Micro,,5106309622,PADS Fees and Expenses,B14 6BX,"3,258.96",
"Housing, Communities & Local Government",PINS,03/04/2024,PADS Fees & Expenses,Inspectors Costs,REDACTED,,Micro,,5106309623,PADS Fees and Expenses,B14 6BX,"3,546.24",
"Housing, Communities & Local Government",PINS,03/04/2024,Specialist Technical Support,Communications,Skylark Media Ltd,,Micro,,5106309624,Recording and editing of sessions ,BS7 8AA,"10,702.03",
"Housing, Communities & Local Government",PINS,04/04/2024,Agency Staff,Human Resources,HAYS SPECIALIST RECRUITMENT LTD,,Large,,5106309721,Contingent Labour,NW1 2AF,"1,650.38",
"Housing, Communities & Local Government",PINS,04/04/2024,Courier Services,Finance,ROYAL MAIL,,Large,,5106309710,Postal Services  ,S49 1HQ,34.07,
"Housing, Communities & Local Government",PINS,04/04/2024,Courier Services,Finance,ROYAL MAIL,,Large,,5106309710,Postal Services  ,S49 1HQ,229.35,
"Housing, Communities & Local Government",PINS,04/04/2024,DEV Exp (AUC) Intngble Software Acq Cost,PINS Capital X085A011,HAYS SPECIALIST RECRUITMENT LTD,,Large,,5106309720,Business Analyst,NW1 2AF,"3,087.31",
"Housing, Communities & Local Government",PINS,04/04/2024,DEV Exp (AUC) Intngble Software Acq Cost,PINS Capital X085A011,HAYS SPECIALIST RECRUITMENT LTD,,Large,,5106309728,Software Tester ,NW1 2AF,"1,770.29",
"Housing, Communities & Local Government",PINS,04/04/2024,IT - Service Contracts,Digital Services,tmc3 Limited,,Small,,5106309716,SoW02 - Cyber Security as a Service,L18 2DA,"6,175.00",
"Housing, Communities & Local Government",PINS,04/04/2024,PADS Fees & Expenses,Inspectors Costs,REDACTED,,Micro,,5106309712,PADS Fees and Expenses,HG5 0BY,"1,746.30",
"Housing, Communities & Local Government",PINS,04/04/2024,PADS Fees & Expenses,Inspectors Costs,REDACTED,,Micro,,5106309718,PADS Fees and Expenses,DY12 2AE,504.00,
"Housing, Communities & Local Government",PINS,04/04/2024,Specialist Technical Support,Digital Services,ARCULUS LTD,,Small,,5106309726,Assessment  ,BN3 2PJ,"4,560.00",
"Housing, Communities & Local Government",PINS,04/04/2024,Specialist Technical Support,Digital Services,ARCULUS LTD,,Small,,5106309726,GovAssure,BN3 2PJ,"9,720.00",
"Housing, Communities & Local Government",PINS,04/04/2024,Specialist Technical Support,CP Balance,HAYS SPECIALIST RECRUITMENT LTD,,Large,,5106309724,Business Analyst  ,NW1 2AF,"3,092.11",
"Housing, Communities & Local Government",PINS,04/04/2024,Web Services,Digital Services,ZSAH LTD,,Small,,5106309731,Hosting,SW7 3HE,"1,887.42",
"Housing, Communities & Local Government",PINS,05/04/2024,DEV Exp (AUC) Intngble Software Acq Cost,PINS Capital X085A011,HAYS SPECIALIST RECRUITMENT LTD,,Large,,5106309783,CMS Developer ,NW1 2AF,"2,708.06",
"Housing, Communities & Local Government",PINS,05/04/2024,IT - Software Maintenance,Digital Services,AIIMI LTD,,Medium,,5106309826,Pre-paid support bundle,MK9 1FH,"12,600.00",
"Housing, Communities & Local Government",PINS,05/04/2024,IT - Software Maintenance,Digital Services,AIIMI LTD,,Medium,,5106309826,Technical Support Service,MK9 1FH,"18,000.00",
"Housing, Communities & Local Government",PINS,05/04/2024,Office machinery consumables,Finance,BANNER BUSINESS SUPPLIES LTD,,Large,,5106309766,IT Consumables 2023/2024,S9 1XU,"6,171.63",
"Housing, Communities & Local Government",PINS,05/04/2024,Office machinery consumables,Finance,BANNER BUSINESS SUPPLIES LTD,,Large,,5106309776,IT Consumables 2023/2024,S9 1XU,"5,236.10",
"Housing, Communities & Local Government",PINS,05/04/2024,Office Supplies,Finance,BANNER BUSINESS SUPPLIES LTD,,Large,,5106309766,Paper 2023/2024,S9 1XU,"3,222.09",
"Housing, Communities & Local Government",PINS,05/04/2024,Office Supplies,Finance,BANNER BUSINESS SUPPLIES LTD,,Large,,5106309766,Stationery 2023/2024,S9 1XU,"3,047.54",
"Housing, Communities & Local Government",PINS,05/04/2024,Office Supplies,Finance,BANNER BUSINESS SUPPLIES LTD,,Large,,5106309776,Paper 2023/2024,S9 1XU,"3,654.55",
"Housing, Communities & Local Government",PINS,05/04/2024,Office Supplies,Finance,BANNER BUSINESS SUPPLIES LTD,,Large,,5106309776,Stationery 2023/2024,S9 1XU,"5,717.98",
"Housing, Communities & Local Government",PINS,05/04/2024,PADS Fees & Expenses,Inspectors Costs,REDACTED,,Micro,,5106309749,PADS Fees and Expenses,DY12 2AE,456.00,
"Housing, Communities & Local Government",PINS,05/04/2024,PADS Fees & Expenses,Inspectors Costs,REDACTED,,Micro,,5106309750,PADS Fees and Expenses,RH20 3LY,"2,770.00",
"Housing, Communities & Local Government",PINS,05/04/2024,PADS Fees & Expenses,Inspectors Costs,REDACTED,,Small,,5106309774,PADS Fees and Expenses,SA61 2SJ,"2,199.55",
"Housing, Communities & Local Government",PINS,05/04/2024,Specialist Technical Support,Digital Services,tmc3 Limited,,Small,,5106309744,PINS 006.1 Appeals Service Web Applicati,L18 2DA,"5,520.00",
"Housing, Communities & Local Government",PINS,05/04/2024,Specialist Technical Support,Digital Services,tmc3 Limited,,Small,,5106309744,PINS 006.2 Analysis Reporting and QA,L18 2DA,"2,070.00",
"Housing, Communities & Local Government",PINS,05/04/2024,Vehicle hire,Inspectors Costs,ENTERPRISE RENT-A-CAR,,Large,,5106309827,Car Hire 23/24,TW20 9FB,"37,133.90",
"Housing, Communities & Local Government",PINS,05/04/2024,Vehicle hire,Inspectors Costs,ENTERPRISE RENT-A-CAR,,Large,,5106309827,Car Hire 23/24 ,TW20 9FB,40.00,
"Housing, Communities & Local Government",PINS,08/04/2024,PADS Fees & Expenses,Inspectors Costs,REDACTED,,Small,,5106309832,PADS Fees and Expenses,RH7 6RH,"3,190.00",
"Housing, Communities & Local Government",PINS,08/04/2024,PADS Fees & Expenses,Inspectors Costs,REDACTED,,Data Not Provided,,5106309854,PADS Fees and Expenses,CB3 0HS,"2,353.80",
"Housing, Communities & Local Government",PINS,08/04/2024,PADS Fees & Expenses,Inspectors Costs,REDACTED,,Micro,,5106309849,PADS Fees and Expenses,BB4 8TB,"3,050.26",
"Housing, Communities & Local Government",PINS,08/04/2024,PADS Fees & Expenses,Inspectors Costs,REDACTED,,Micro,,5106309844,PADS Fees and Expenses,CT2 8DR,"3,132.55",
"Housing, Communities & Local Government",PINS,08/04/2024,Subscriptions,Chief Executive,ASSOCIATION OF CHIEF EXECUTIVE,,Micro,,5106309834,Annual membership renewal  ,SW1Y 5AA,"1,500.00",
"Housing, Communities & Local Government",PINS,09/04/2024,DEV Exp (AUC) Intngble Software Acq Cost,PINS Capital X085A011,LA INTERNATIONAL COMP CONSULTANTS L,,Large,,5106309871,Software Developer  ,ST1 5UB,"14,763.00",
"Housing, Communities & Local Government",PINS,09/04/2024,Mobile phone costs,Digital Services,ORBIS PROTECT,,Large,,5106309897,Lone Worker Protection Services,UB8 1QG,"2,298.96",
"Housing, Communities & Local Government",PINS,09/04/2024,Specialist Technical Support,Project Speed,LA INTERNATIONAL COMP CONSULTANTS L,,Large,,5106308928,Service Designer ,ST1 5UB,"-2,313.00",
"Housing, Communities & Local Government",PINS,09/04/2024,Translations,Operations Group 2,TROSOL CYFYNGEDIG,,Small,,5106309748,Welsh Translation Services,CF11 9LJ,"11,697.21",
"Housing, Communities & Local Government",PINS,10/04/2024,Agency Staff,Communications,HAYS SPECIALIST RECRUITMENT LTD,,Large,,5106309757,Contingent Labour,NW1 2AF,"1,997.86",
"Housing, Communities & Local Government",PINS,10/04/2024,Agency Staff,Finance,REED SPECIALIST RECRUITMENT LTD,,Large,,5106309887,Contingent Labour,SW20 0BA,"1,411.20",
"Housing, Communities & Local Government",PINS,10/04/2024,Agency Staff,Finance,REED SPECIALIST RECRUITMENT LTD,,Large,,5106309913,Contingent Labour,SW20 0BA,524.21,
"Housing, Communities & Local Government",PINS,10/04/2024,DEV Exp (AUC) Intngble Software Acq Cost,PINS Capital X085A011,HAYS SPECIALIST RECRUITMENT LTD,,Large,,5106309926,Lead Product Manager  ,NW1 2AF,"3,708.34",
"Housing, Communities & Local Government",PINS,10/04/2024,DEV Exp (AUC) Intngble Software Acq Cost,PINS Capital X085A011,LA INTERNATIONAL COMP CONSULTANTS L,,Large,,5106309968,Software Developer  ,ST1 5UB,"14,763.00",
"Housing, Communities & Local Government",PINS,10/04/2024,PADS Fees & Expenses,Inspectors Costs,REDACTED,,Data Not Provided,,5106309914,PADS Fees and Expenses,CV21 3JN,"2,128.70",
"Housing, Communities & Local Government",PINS,10/04/2024,PADS Fees & Expenses,Inspectors Costs,REDACTED,,Micro,,5106309917,PADS Fees and Expenses,HG4 1UJ,"4,941.05",
"Housing, Communities & Local Government",PINS,10/04/2024,PADS Fees & Expenses,Inspectors Costs,REDACTED,,Small,,5106309919,PADS Fees and Expenses,B73 6TD,"1,616.70",
"Housing, Communities & Local Government",PINS,10/04/2024,PADS Fees & Expenses,Inspectors Costs,REDACTED,,Micro,,5106309918,PADS Fees and Expenses,DY12 2AE,456.00,
"Housing, Communities & Local Government",PINS,10/04/2024,PADS Fees & Expenses,Inspectors Costs,REDACTED,,Micro,,5106309935,PADS Fees and Expenses,DY12 2AE,456.00,
"Housing, Communities & Local Government",PINS,10/04/2024,PADS Fees & Expenses,Inspectors Costs,REDACTED,,Micro,,5106309942,PADS Fees and Expenses,CT2 7ET,420.00,
"Housing, Communities & Local Government",PINS,10/04/2024,PADS Fees & Expenses,Inspectors Costs,REDACTED,,Small,,5106309916,PADS Fees and Expenses,BT23 6NR,"3,107.35",
"Housing, Communities & Local Government",PINS,10/04/2024,PADS Fees & Expenses,Inspectors Costs,REDACTED,,Micro,,5106309922,PADS Fees and Expenses,B14 6BX,"3,258.96",
"Housing, Communities & Local Government",PINS,10/04/2024,Rent,Change Portfolio Workstreams,Science Research Foundation,,Small,,5106309925,12-month contract: 04/09/2023-03/09/2024,BS1 6QH,"17,400.00",
"Housing, Communities & Local Government",PINS,10/04/2024,Travel and Subsistence Account,Inspectors Costs,CORPORATE TRAVEL MANAGEMENT(NORTH)L,,Small,,5106309955,Air Travel,BD1 5HQ,437.24,
"Housing, Communities & Local Government",PINS,10/04/2024,Travel and Subsistence Account,Inspectors Costs,CORPORATE TRAVEL MANAGEMENT(NORTH)L,,Small,,5106309955,Hotel Accommodation,BD1 5HQ,"175,999.62",
"Housing, Communities & Local Government",PINS,10/04/2024,Travel and Subsistence Account,Inspectors Costs,CORPORATE TRAVEL MANAGEMENT(NORTH)L,,Small,,5106309955,Hotel Fees,BD1 5HQ,4.56,
"Housing, Communities & Local Government",PINS,10/04/2024,Travel and Subsistence Account,Inspectors Costs,CORPORATE TRAVEL MANAGEMENT(NORTH)L,,Small,,5106309955,Rail Travel,BD1 5HQ,"38,185.70",
"Housing, Communities & Local Government",PINS,10/04/2024,Travel and Subsistence Account,Inspectors Costs,CORPORATE TRAVEL MANAGEMENT(NORTH)L,,Small,,5106309955,Web Transactions,BD1 5HQ,189.12,
"Housing, Communities & Local Government",PINS,11/04/2024,Agency Staff,Digital Services,HAYS SPECIALIST RECRUITMENT LTD,,Large,,5106309927,Contingent Labour,NW1 2AF,"1,658.93",
"Housing, Communities & Local Government",PINS,11/04/2024,Agency Staff,Human Resources,HAYS SPECIALIST RECRUITMENT LTD,,Large,,5106309977,Contingent Labour,NW1 2AF,"1,650.38",
"Housing, Communities & Local Government",PINS,11/04/2024,Conferences and Meeting Facilities,Human Resources,CALDER CONFERENCES LIMITED,,Small,,5106309973,Additional onePINS venue hire costs,LS16 6RF,349.99,
"Housing, Communities & Local Government",PINS,11/04/2024,DEV Exp (AUC) Intngble Software Acq Cost,PINS Capital X085A011,HAYS SPECIALIST RECRUITMENT LTD,,Large,,5106309928,Software Tester ,NW1 2AF,"2,055.98",
"Housing, Communities & Local Government",PINS,11/04/2024,Training,Director of Operations,KPMG LLP (CSL),,Large,,5106309987,Having Difficult Conversations,E14 5GL,"3,232.27",
"Housing, Communities & Local Government",PINS,12/04/2024,Advertising,Operations Group 2,PeopleScout Limited,,Large,,5106310073,Statutory Advertising ,W1T 7RQ,685.55,
"Housing, Communities & Local Government",PINS,12/04/2024,Agency Staff,Digital Services,HAYS SPECIALIST RECRUITMENT LTD,,Large,,5106310035,Contingent Labour,NW1 2AF,"1,658.93",
"Housing, Communities & Local Government",PINS,12/04/2024,Intangible Software Acquisition Cost,PINS Capital X085A011,HAYS SPECIALIST RECRUITMENT LTD,,Large,,5106310075,Test Engineer ,NW1 2AF,"1,417.72",
"Housing, Communities & Local Government",PINS,12/04/2024,Mobile phone costs,Digital Services,DAISY CORPORATE SERVICES TRADING LT,,Large,,5106310013,MiFi,BB9 5SR,742.80,
"Housing, Communities & Local Government",PINS,12/04/2024,Mobile phone costs,Digital Services,DAISY CORPORATE SERVICES TRADING LT,,Large,,5106310085,Mobiles,BB9 5SR,"1,246.57",
"Housing, Communities & Local Government",PINS,12/04/2024,Mobile phone costs,Digital Services,DAISY CORPORATE SERVICES TRADING LT,,Large,,5106310087,Mobiles,BB9 5SR,"2,738.90",
"Housing, Communities & Local Government",PINS,12/04/2024,Mobile phone costs,Digital Services,DAISY CORPORATE SERVICES TRADING LT,,Large,,5106310087,Telephony,BB9 5SR,98.00,
"Housing, Communities & Local Government",PINS,12/04/2024,PADS Fees & Expenses,Inspectors Costs,REDACTED,,Small,,5106310070,PADS Fees and Expenses,ST21 6AJ,"2,165.76",
"Housing, Communities & Local Government",PINS,12/04/2024,PADS Fees & Expenses,Inspectors Costs,REDACTED,,Small,,2100120815,PADS Fees and Expenses,TR16 5TH,"-1,814.15",
"Housing, Communities & Local Government",PINS,12/04/2024,PADS Fees & Expenses,Inspectors Costs,REDACTED,,Small,,5106309979,PADS Fees and Expenses,TR16 5TH,"1,814.15",
"Housing, Communities & Local Government",PINS,12/04/2024,PADS Fees & Expenses,Inspectors Costs,REDACTED,,Data Not Provided,,5106310030,PADS Fees and Expenses,SO22 6RT,"3,975.48",
"Housing, Communities & Local Government",PINS,15/04/2024,Advertising,Operations Group 2,PeopleScout Limited,,Large,,5106310122,Statutory Advertising ,W1T 7RQ,"1,044.35",
"Housing, Communities & Local Government",PINS,15/04/2024,Advertising,Operations Group 2,PeopleScout Limited,,Large,,5106310130,Statutory Advertising ,W1T 7RQ,824.77,
"Housing, Communities & Local Government",PINS,15/04/2024,IT Maintenance,Digital Services,X M A LTD,,Data Not Provided,,5106310097,I81-00002 MS Surface Hub 3 5-yr warranty,NG11 7EP,"2,294.00",
"Housing, Communities & Local Government",PINS,15/04/2024,IT Maintenance,Digital Services,X M A LTD,,Data Not Provided,,5106310100,VP3-00028 4yr MS Surface Pro Warranties,NG11 7EP,621.20,
"Housing, Communities & Local Government",PINS,15/04/2024,IT Maintenance,Digital Services,X M A LTD,,Data Not Provided,,5106310100,VP3-00043 4yr MS Surface Laptop Warranty,NG11 7EP,"2,610.30",
"Housing, Communities & Local Government",PINS,15/04/2024,Online Database Information Retrieval,Innovation & Improvement,HAYMARKET MEDIA GROUP LIMITED,,Data Not Provided,,5106310020,Planning Resource/DCP Online/COMPASS 202,TW1 3SP,"67,032.00",
"Housing, Communities & Local Government",PINS,15/04/2024,PADS Fees & Expenses,Inspectors Costs,REDACTED,,Small,,5106310018,PADS Fees and Expenses,RH7 6RH,"3,415.00",
"Housing, Communities & Local Government",PINS,15/04/2024,PADS Fees & Expenses,Inspectors Costs,REDACTED,,Small,,5106310026,PADS Fees and Expenses,RG41 3HL,"1,824.00",
"Housing, Communities & Local Government",PINS,15/04/2024,Physical Storage,Finance,Restore PLC,,Large,,5106310107,Offsite Storage 2023/2024,RH1 5DY,858.25,
"Housing, Communities & Local Government",PINS,15/04/2024,Specialist Technical Support,CP Balance,HAYS SPECIALIST RECRUITMENT LTD,,Large,,2100120858,Business Analyst ,NW1 2AF,"-3,092.11",
"Housing, Communities & Local Government",PINS,15/04/2024,Specialist Technical Support,CP Balance,HAYS SPECIALIST RECRUITMENT LTD,,Large,,5106310019,Business Analyst ,NW1 2AF,"3,092.11",
"Housing, Communities & Local Government",PINS,16/04/2024,Agency Staff,Resourcing & Process,REED SPECIALIST RECRUITMENT LTD,,Large,,5106310149,Contingent Labour,SW20 0BA,582.85,
"Housing, Communities & Local Government",PINS,16/04/2024,Agency Staff,Resourcing & Process,REED SPECIALIST RECRUITMENT LTD,,Large,,5106310173,Contingent Labour,SW20 0BA,582.85,
"Housing, Communities & Local Government",PINS,16/04/2024,DEV Exp (AUC) Intngble Software Acq Cost,PINS Capital X085A011,HAYS SPECIALIST RECRUITMENT LTD,,Large,,5106310151,Business Analyst,NW1 2AF,"2,315.48",
"Housing, Communities & Local Government",PINS,16/04/2024,DEV Exp (AUC) Intngble Software Acq Cost,PINS Capital X085A011,Kin&Carta Partnerships Uk Ltd,,Micro,,5106310154,SoW027 Applications Front Office  ,N1 9BE,"46,200.00",
"Housing, Communities & Local Government",PINS,16/04/2024,DEV Exp (AUC) Intngble Software Acq Cost,PINS Capital X085A011,Kin&Carta Partnerships Uk Ltd,,Micro,,5106310156,SoW033 ODW  ,N1 9BE,"72,600.00",
"Housing, Communities & Local Government",PINS,16/04/2024,DEV Exp (AUC) Intngble Software Acq Cost,PINS Capital X085A011,Kin&Carta Partnerships Uk Ltd,,Micro,,5106310157,SoW026 Appeals Front Office  ,N1 9BE,"49,776.00",
"Housing, Communities & Local Government",PINS,16/04/2024,DEV Exp (AUC) Intngble Software Acq Cost,PINS Capital X085A011,Kin&Carta Partnerships Uk Ltd,,Micro,,5106310158,SoW029 Appeals Back Office ,N1 9BE,"164,672.40",
"Housing, Communities & Local Government",PINS,16/04/2024,Intangible Software Acquisition Cost,PINS Capital X085A011,Kin&Carta Partnerships Uk Ltd,,Micro,,5106310159,SoW028 Applications Back Office ,N1 9BE,"138,006.00",
"Housing, Communities & Local Government",PINS,16/04/2024,Mobile phone costs,Digital Services,DAISY CORPORATE SERVICES TRADING LT,,Large,,5106310188,Mobiles,BB9 5SR,"1,163.24",
"Housing, Communities & Local Government",PINS,16/04/2024,PADS Fees & Expenses,Inspectors Costs,REDACTED,,Micro,,5106310146,PADS Fees and Expenses,DE22 2GF,"2,111.88",
"Housing, Communities & Local Government",PINS,16/04/2024,PADS Fees & Expenses,Inspectors Costs,REDACTED,,Small,,5106310150,PADS Fees and Expenses,B73 6TD,"1,652.45",
"Housing, Communities & Local Government",PINS,17/04/2024,Advertising,Operations Group 2,PeopleScout Limited,,Large,,5106310206,Statutory Advertising ,W1T 7RQ,"2,014.57",
"Housing, Communities & Local Government",PINS,17/04/2024,Advertising,Operations Group 2,PeopleScout Limited,,Large,,5106310215,Statutory Advertising ,W1T 7RQ,"1,247.05",
"Housing, Communities & Local Government",PINS,17/04/2024,Advertising,Operations Group 2,PeopleScout Limited,,Large,,5106310246,Statutory Advertising ,W1T 7RQ,"1,031.63",
"Housing, Communities & Local Government",PINS,17/04/2024,DEV Exp (AUC) Intngble Software Acq Cost,PINS Capital X085A011,HAYS SPECIALIST RECRUITMENT LTD,,Large,,5106310193,Interaction Designer  ,NW1 2AF,"3,092.11",
"Housing, Communities & Local Government",PINS,17/04/2024,DEV Exp (AUC) Intngble Software Acq Cost,PINS Capital X085A011,HAYS SPECIALIST RECRUITMENT LTD,,Large,,5106310229,Interaction Designer  ,NW1 2AF,"3,865.14",
"Housing, Communities & Local Government",PINS,17/04/2024,DEV Exp (AUC) Intngble Software Acq Cost,PINS Capital X085A011,HAYS SPECIALIST RECRUITMENT LTD,,Large,,5106310231,Lead Product Manager  ,NW1 2AF,"4,635.42",
"Housing, Communities & Local Government",PINS,17/04/2024,DEV Exp (AUC) Intngble Software Acq Cost,PINS Capital X085A011,HAYS SPECIALIST RECRUITMENT LTD,,Large,,5106310239,Software Tester ,NW1 2AF,"2,569.98",
"Housing, Communities & Local Government",PINS,17/04/2024,DEV Exp (AUC) Intngble Software Acq Cost,PINS Capital X085A011,Kin&Carta Partnerships Uk Ltd,,Micro,,5106310216,Appeals Back Office,N1 9BE,"12,636.25",
"Housing, Communities & Local Government",PINS,17/04/2024,DEV Exp (AUC) Intngble Software Acq Cost,PINS Capital X085A011,Kin&Carta Partnerships Uk Ltd,,Micro,,5106310216,Appeals Front Office,N1 9BE,"12,636.25",
"Housing, Communities & Local Government",PINS,17/04/2024,Intangible Software Acquisition Cost,PINS Capital X085A011,HAYS SPECIALIST RECRUITMENT LTD,,Large,,5106310230,Test Engineer ,NW1 2AF,"2,362.86",
"Housing, Communities & Local Government",PINS,17/04/2024,Intangible Software Acquisition Cost,PINS Capital X085A011,Kin&Carta Partnerships Uk Ltd,,Micro,,5106310216,Applications Back Office,N1 9BE,"12,636.25",
"Housing, Communities & Local Government",PINS,17/04/2024,Intangible Software Acquisition Cost,PINS Capital X085A011,Kin&Carta Partnerships Uk Ltd,,Micro,,5106310216,Applications Front Office,N1 9BE,"12,636.25",
"Housing, Communities & Local Government",PINS,17/04/2024,PADS Fees & Expenses,Inspectors Costs,REDACTED,,Micro,,5106310205,PADS Fees and Expenses,LS3 1JY,"2,156.04",
"Housing, Communities & Local Government",PINS,17/04/2024,PADS Fees & Expenses,Inspectors Costs,REDACTED,,Small,,5106310191,PADS Fees and Expenses,E1 1LQ,"3,720.00",
"Housing, Communities & Local Government",PINS,18/04/2024,Intangible Software Acquisition Cost,PINS Capital X085A011,HAYS SPECIALIST RECRUITMENT LTD,,Large,,5106310264,Business Analyst,NW1 2AF,"3,087.31",
"Housing, Communities & Local Government",PINS,18/04/2024,PADS Fees & Expenses,Inspectors Costs,REDACTED,,Micro,,5106310251,PADS Fees and Expenses,LL54 5BS,"1,315.35",
"Housing, Communities & Local Government",PINS,19/04/2024,PADS Fees & Expenses,Inspectors Costs,REDACTED,,Small,,5106310302,PADS Fees and Expenses,TR16 5TH,"1,814.15",
"Housing, Communities & Local Government",PINS,22/04/2024,IT - Service Contracts,Digital Services,DLUHC,,Public Bodies,,5106310376,Azure,HP2 4XN,"130,119.14",
"Housing, Communities & Local Government",PINS,22/04/2024,IT - Service Contracts,Digital Services,DLUHC,,Public Bodies,,5106310376,Daisy Telephony,HP2 4XN,437.25,
"Housing, Communities & Local Government",PINS,22/04/2024,IT - Service Contracts,Digital Services,DLUHC,,Public Bodies,,5106310376,Littlefish Servicedesk,HP2 4XN,"55,091.06",
"Housing, Communities & Local Government",PINS,22/04/2024,IT - Service Contracts,Digital Services,DLUHC,,Public Bodies,,5106310376,M365 E5  ,HP2 4XN,419.33,
"Housing, Communities & Local Government",PINS,22/04/2024,IT - Service Contracts,Digital Services,DLUHC,,Public Bodies,,5106310376,MS Unified Support,HP2 4XN,"12,449.87",
"Housing, Communities & Local Government",PINS,22/04/2024,IT - Service Contracts,Digital Services,DLUHC,,Public Bodies,,5106310376,Microsoft M365 Licensing,HP2 4XN,"95,887.43",
"Housing, Communities & Local Government",PINS,22/04/2024,IT - Service Contracts,Digital Services,DLUHC,,Public Bodies,,5106310376,Service Now  ,HP2 4XN,"3,333.96",
"Housing, Communities & Local Government",PINS,22/04/2024,IT - Service Contracts,Digital Services,DLUHC,,Public Bodies,,5106310376,Zscaler,HP2 4XN,"22,680.00",
"Housing, Communities & Local Government",PINS,22/04/2024,Steady State Service Provision,Human Resources,TOTAL CONFLICT MANAGEMENT LTD,,Micro,,5106310364,Mediation Services extra day,N1 0QH,"1,194.00",
"Housing, Communities & Local Government",PINS,22/04/2024,Vehicle hire,Inspectors Costs,ENTERPRISE RENT-A-CAR,,Large,,5106310354,Damage to Hire Car,TW20 9FB,683.01,
"Housing, Communities & Local Government",PINS,23/04/2024,Agency Staff,Resourcing & Process,REED SPECIALIST RECRUITMENT LTD,,Large,,5106310410,Contingent Labour,SW20 0BA,735.80,
"Housing, Communities & Local Government",PINS,23/04/2024,DEV Exp (AUC) Intngble Software Acq Cost,PINS Capital X085A011,HAYS SPECIALIST RECRUITMENT LTD,,Large,,5106310448,Business Analyst,NW1 2AF,"-2,315.48",
"Housing, Communities & Local Government",PINS,23/04/2024,Intangible Software Acquisition Cost,PINS Capital X085A011,HAYS SPECIALIST RECRUITMENT LTD,,Large,,5106310449,Business Analyst,NW1 2AF,"2,315.48",
"Housing, Communities & Local Government",PINS,23/04/2024,PADS Fees & Expenses,Inspectors Costs,REDACTED,,Micro,,5106310409,PADS Fees and Expenses,DY12 2AE,546.72,
"Housing, Communities & Local Government",PINS,23/04/2024,PADS Fees & Expenses,Inspectors Costs,REDACTED,,Small,,5106310407,PADS Fees and Expenses,RG24 8SA,"1,520.00",
"Housing, Communities & Local Government",PINS,23/04/2024,PADS Fees & Expenses,Inspectors Costs,REDACTED,,Micro,,5106310400,PADS Fees and Expenses,CM3 1HZ,"1,520.00",
"Housing, Communities & Local Government",PINS,23/04/2024,PADS Fees & Expenses,Inspectors Costs,REDACTED,,Small,,5106310398,PADS Fees and Expenses,WS13 7DH,"2,281.15",
"Housing, Communities & Local Government",PINS,24/04/2024,Advertising,Operations Group 2,PeopleScout Limited,,Large,,5106310447,Statutory Advertising ,W1T 7RQ,"2,229.32",
"Housing, Communities & Local Government",PINS,24/04/2024,DEV Exp (AUC) Intngble Software Acq Cost,PINS Capital X085A011,HAYS SPECIALIST RECRUITMENT LTD,,Large,,5106310429,Software Tester  ,NW1 2AF,"2,569.98",
"Housing, Communities & Local Government",PINS,24/04/2024,PADS Fees & Expenses,Inspectors Costs,REDACTED,,Data Not Provided,,5106310422,PADS Fees and Expenses,NE66 1UW,"2,130.33",
"Housing, Communities & Local Government",PINS,24/04/2024,PADS Fees & Expenses,Inspectors Costs,REDACTED,,Micro,,5106310420,PADS Fees and Expenses,DY12 2AE,456.00,
"Housing, Communities & Local Government",PINS,24/04/2024,PADS Fees & Expenses,Inspectors Costs,REDACTED,,Micro,,5106310421,PADS Fees and Expenses,TA14 6PT,"2,911.07",
"Housing, Communities & Local Government",PINS,24/04/2024,PADS Fees & Expenses,Inspectors Costs,REDACTED,,Data Not Provided,,5106310425,PADS Fees and Expenses,IP10 0ET,"3,609.08",
"Housing, Communities & Local Government",PINS,25/04/2024,Advertising,Operations Group 2,PeopleScout Limited,,Large,,5106310473,Statutory Advertising ,W1T 7RQ,379.09,
"Housing, Communities & Local Government",PINS,25/04/2024,Agency Staff,CP Balance,HAYS SPECIALIST RECRUITMENT LTD,,Large,,5106310457,Contingent Labour,NW1 2AF,771.83,
"Housing, Communities & Local Government",PINS,25/04/2024,DEV Exp (AUC) Intngble Software Acq Cost,PINS Capital X085A011,HAYS SPECIALIST RECRUITMENT LTD,,Large,,5106310450,Interaction Designer  ,NW1 2AF,"3,092.12",
"Housing, Communities & Local Government",PINS,25/04/2024,DEV Exp (AUC) Intngble Software Acq Cost,PINS Capital X085A011,HAYS SPECIALIST RECRUITMENT LTD,,Large,,5106310452,Lead Product Manager  ,NW1 2AF,"4,635.42",
"Housing, Communities & Local Government",PINS,25/04/2024,DEV Exp (AUC) Intngble Software Acq Cost,PINS Capital X085A011,HAYS SPECIALIST RECRUITMENT LTD,,Large,,5106310457,Business Analyst,NW1 2AF,"3,086.17",
"Housing, Communities & Local Government",PINS,25/04/2024,Intangible Software Acquisition Cost,PINS Capital X085A011,HAYS SPECIALIST RECRUITMENT LTD,,Large,,5106310483,Test Engineer,NW1 2AF,"2,362.86",
"Housing, Communities & Local Government",PINS,25/04/2024,PADS Fees & Expenses,Inspectors Costs,REDACTED,,Micro,,5106310464,PADS Fees and Expenses,SA67 7UP,"1,140.00",
"Housing, Communities & Local Government",PINS,25/04/2024,PADS Fees & Expenses,Inspectors Costs,REDACTED,,Micro,,5106310463,PADS Fees and Expenses,DY12 2AE,456.00,
"Housing, Communities & Local Government",PINS,25/04/2024,Web Services,Digital Services,AGENTO DIGITAL LTD,,Small,,5106310484,Hosting,IG8 7RF,"3,096.00",
"Housing, Communities & Local Government",PINS,26/04/2024,Courier Services,Finance,PARCELFORCE WORLDWIDE,,Large,,5106310490,Courier Services  ,MK7 8LE,812.03,
"Housing, Communities & Local Government",PINS,26/04/2024,Courier Services,Finance,PARCELFORCE WORLDWIDE,,Large,,5106310491,Courier Services  ,MK7 8LE,296.57,
"Housing, Communities & Local Government",PINS,26/04/2024,PADS Fees & Expenses,Inspectors Costs,REDACTED,,Data Not Provided,,2100121162,PADS Fees and Expenses,DE23 8DP,"-1,511.20",
"Housing, Communities & Local Government",PINS,26/04/2024,PADS Fees & Expenses,Inspectors Costs,REDACTED,,Data Not Provided,,5106310489,PADS Fees and Expenses,DE23 8DP,"1,511.20",
"Housing, Communities & Local Government",PINS,26/04/2024,PADS Fees & Expenses,Inspectors Costs,REDACTED,,Small,,5106310499,PADS Fees and Expenses,RG41 3HL,"1,840.20",
"Housing, Communities & Local Government",PINS,26/04/2024,PADS Fees & Expenses,Inspectors Costs,REDACTED,,Micro,,5106310492,PADS Fees and Expenses,DY12 2AE,456.00,
"Housing, Communities & Local Government",PINS,26/04/2024,PADS Fees & Expenses,Inspectors Costs,REDACTED,,Data Not Provided,,5106310498,PADS Fees and Expenses,DE72 3QP,"2,227.95",
"Housing, Communities & Local Government",PINS,26/04/2024,PADS Fees & Expenses,Inspectors Costs,REDACTED,,Data Not Provided,,5106310497,PADS Fees and Expenses,LU7 3RF,"2,844.90",
"Housing, Communities & Local Government",PINS,29/04/2024,Advertising,Operations Group 2,PeopleScout Limited,,Large,,5106310578,Statutory Advertising ,W1T 7RQ,865.82,
"Housing, Communities & Local Government",PINS,29/04/2024,Advertising,Operations Group 2,PeopleScout Limited,,Large,,5106310591,Statutory Advertising ,W1T 7RQ,755.23,
"Housing, Communities & Local Government",PINS,29/04/2024,PADS Fees & Expenses,Inspectors Costs,REDACTED,,Data Not Provided,,5106310573,PADS Fees and Expenses,DE23 8DP,"1,466.20",
"Housing, Communities & Local Government",PINS,29/04/2024,Training,Human Resources,Ernst & Young LLP,,Large,,5106310576,Senior Management Coaching - Various,SE1 2AF,"1,239.75",
"Housing, Communities & Local Government",PINS,30/04/2024,Advertising,Operations Group 2,PeopleScout Limited,,Large,,5106310603,Statutory Advertising ,W1T 7RQ,556.98,
"Housing, Communities & Local Government",PINS,30/04/2024,Advertising,Operations Group 2,PeopleScout Limited,,Large,,5106310604,Statutory Advertising ,W1T 7RQ,609.08,
"Housing, Communities & Local Government",PINS,30/04/2024,Advertising,Operations Group 2,PeopleScout Limited,,Large,,5106310606,Statutory Advertising ,W1T 7RQ,"2,007.95",
"Housing, Communities & Local Government",PINS,30/04/2024,Advertising,Operations Group 2,PeopleScout Limited,,Large,,5106310607,Statutory Advertising ,W1T 7RQ,"3,519.37",
"Housing, Communities & Local Government",PINS,30/04/2024,Advertising,Operations Group 2,PeopleScout Limited,,Large,,5106310608,Statutory Advertising ,W1T 7RQ,"2,660.65",
"Housing, Communities & Local Government",PINS,30/04/2024,Advertising,Operations Group 2,PeopleScout Limited,,Large,,5106310609,Statutory Advertising ,W1T 7RQ,495.47,
"Housing, Communities & Local Government",PINS,30/04/2024,Advertising,Operations Group 2,PeopleScout Limited,,Large,,5106310610,Statutory Advertising ,W1T 7RQ,300.94,
"Housing, Communities & Local Government",PINS,30/04/2024,Agency Staff,Resourcing & Process,REED SPECIALIST RECRUITMENT LTD,,Large,,5106310614,Contingent Labour,SW20 0BA,735.80,
"Housing, Communities & Local Government",PINS,30/04/2024,Legal Fees,Innovation & Improvement,GOVERNMENT LEGAL DEPT,,Public Bodies,,5106310611,Legal Fees,WC2B 4TS,"112,714.45",
"Housing, Communities & Local Government",PINS,30/04/2024,PADS Fees & Expenses,Inspectors Costs,REDACTED,,Micro,,5106310600,PADS Fees and Expenses,M32 8QU,"2,039.20",
"Housing, Communities & Local Government",PINS,30/04/2024,PADS Fees & Expenses,Inspectors Costs,REDACTED,,Data Not Provided,,5106310601,PADS Fees and Expenses,BH14 8AL,"4,381.62",
"Housing, Communities & Local Government",PINS,30/04/2024,PADS Fees & Expenses,Inspectors Costs,REDACTED,,Micro,,5106310599,PADS Fees and Expenses,RH20 3LY,"2,090.00",
"Housing, Communities & Local Government",PINS,30/04/2024,PADS Fees & Expenses,Inspectors Costs,REDACTED,,Small,,5106310567,PADS Fees and Expenses,TQ6 9RG,"3,779.82",
"Housing, Communities & Local Government",PINS,30/04/2024,PADS Fees & Expenses,Inspectors Costs,REDACTED,,Micro,,5106310568,PADS Fees and Expenses,CM3 1HZ,"1,535.75",
"Housing, Communities & Local Government",PINS,30/04/2024,PADS Fees & Expenses,Inspectors Costs,REDACTED,,Micro,,5106310639,PADS Fees and Expenses,BB4 8TB,"2,548.35",
"Housing, Communities & Local Government",PINS,30/04/2024,PADS Fees & Expenses,Inspectors Costs,REDACTED,,Data Not Provided,,5106310605,PADS Fees and Expenses,EC4Y 7AR,"3,648.00",
"Housing, Communities & Local Government",PINS,30/04/2024,PADS Fees & Expenses,Inspectors Costs,REDACTED,,Data Not Provided,,5106310605,PADS Fees and Expenses,EC4Y 7AR,145.20,
"Housing, Communities & Local Government",PINS,30/04/2024,PADS Fees & Expenses,Inspectors Costs,REDACTED,,Small,,5106310638,PADS Fees and Expenses,SE5 9LH,"3,648.00",
